bitfinex-derivatives/quotes_BNBF0:USTF0_20250128
["timestamp","ask_amount","ask_price","bid_price","bid_amount"]
[1738084204250,1.26,672.22,671.01,0.29805815]
[1738084206051,1.26,672.22,671.16,1.1167485]
[1738084206752,1.26,672.22,671.18,0.29798265]
[1738084210454,1.26,672.22,671.39,1.1167485]
[1738084212955,1.26,672.22,671.29,1.1167485]
[1738084213155,1.26,672.22,671.3,0.29792939]
[1738084215457,1.26,672.22,671.44,1.10419085]
[1738084216058,1.26,672.22,671.45,0.29786283]
[1738084220759,1.26,672.22,671.52,1.10419085]
[1738084221162,1.26,672.22,671.53,0.29782734]
[1738084223766,1.26,672.22,671.55,1.10419085]
[1738084224160,1.26,672.22,671.56,0.29781404]
[1738084226572,0.01107937,672.99,671.56,0.29781404]
[1738084227062,1.55307454,673.0,671.56,0.29781404]
[1738084227764,2.69207454,673.0,671.56,0.29781404]
[1738084231069,2.98925136,673.0,671.56,0.29781404]
[1738084234768,1.43617682,673.0,671.56,0.29781404]
[1738084238874,1.139,673.0,671.56,0.29781404]
[1738084239071,1.139,673.0,671.68,1.10419085]
[1738084243775,1.139,673.0,671.69,1.10419085]
[1738084245277,1.139,673.0,671.71,0.29774753]
[1738084259797,1.139,673.0,671.94,1.10419085]
[1738084260298,1.139,673.0,671.96,0.29763676]
[1738084263303,1.139,673.0,672.03,1.10419085]
[1738084265604,1.139,673.0,671.96,0.29763676]
[1738084269608,1.139,673.0,671.96,1.40182761]
[1738084272110,1.139,673.0,672.11,1.10419085]
[1738084274810,1.139,673.0,672.23,1.10419085]
[1738084277913,1.139,673.0,672.39,1.10419085]
[1738084280916,1.139,673.0,672.12,1.10419085]
[1738084281313,1.139,673.0,672.13,0.29756148]
[1738084284821,1.139,673.0,672.18,1.10419085]
[1738084285017,1.139,673.0,672.19,0.29753492]
[1738084289019,1.139,673.0,672.29,1.10419085]
[1738084291719,1.139,673.0,672.31,1.10419085]
[1738084294528,1.139,673.0,672.44,1.10419085]
[1738084299927,1.139,673.0,672.5,1.10419085]
[1738084301220,1.139,673.0,672.6,1.10419085]
[1738084305222,1.139,673.0,672.49,1.10419085]
[1738084308428,1.139,673.0,672.48,1.10419085]
[1738084312232,1.139,673.0,672.41,1.10419085]
[1738084314436,1.139,673.0,672.51,1.10419085]
[1738084317941,1.139,673.0,672.43,1.10419085]
[1738084324550,1.139,673.0,672.61,1.10419085]
[1738084327349,1.139,673.0,672.38,1.10419085]
[1738084327350,1.139,673.0,672.59,1.10419085]
[1738084330245,1.139,673.0,672.58,1.10419085]
[1738084333552,1.139,673.0,672.19,0.29753492]
[1738084340159,1.139,673.0,672.27,1.10419085]
[1738084343157,1.139,673.0,672.19,0.29753492]
[1738084343158,1.139,673.0,672.45,1.10419085]
[1738084345557,1.139,673.0,672.46,1.10419085]
[1738084347860,1.139,673.0,672.59,1.10419085]
[1738084351066,1.139,673.0,672.52,1.10419085]
[1738084354663,1.139,673.0,672.19,0.29753492]
[1738084354664,1.139,673.0,672.35,1.10419085]
[1738084357469,1.139,673.0,672.41,1.10419085]
[1738084359964,1.139,673.0,672.43,1.10419085]
[1738084362972,1.139,673.0,672.19,0.29753492]
[1738084362973,1.139,673.0,672.53,1.10419085]
[1738084365671,1.139,673.0,672.5,1.10419085]
[1738084368680,1.139,673.0,672.52,1.10419085]
[1738084371482,1.139,673.0,672.21,1.10419085]
[1738084375185,1.139,673.0,672.23,1.10419085]
[1738084378386,1.139,673.0,672.31,1.10419085]
[1738084381385,1.139,673.0,672.3,1.10419085]
[1738084384488,1.139,673.0,672.39,1.10419085]
[1738084386885,1.139,673.0,672.48,1.10419085]
[1738084389290,1.139,673.0,672.47,1.10419085]
[1738084392293,1.139,673.0,672.56,1.10419085]
[1738084394596,1.139,673.0,672.51,1.10419085]
[1738084396995,1.139,673.0,672.53,1.10419085]
[1738084399294,1.139,673.0,672.45,1.10419085]
[1738084402295,1.139,673.0,672.43,1.10419085]
[1738084405096,1.139,673.0,672.42,1.10419085]
[1738084407898,1.139,673.0,672.38,1.10419085]
[1738084411401,1.139,673.0,672.52,1.10419085]
[1738084414207,1.139,673.0,672.2,0.70261697]
[1738084414208,1.139,673.0,672.54,1.10419085]
[1738084417606,1.139,673.0,672.53,1.10419085]
[1738084419811,1.139,673.0,672.61,1.10419085]
[1738084423103,1.139,673.0,672.7,1.10419085]
[1738084424709,0.54400001,673.0,672.7,1.10419085]
[1738084426108,0.54400001,673.0,672.2,0.70261697]
[1738084426109,0.54400001,673.0,672.81,1.10419085]
[1738084426309,1.55111895,673.73,672.81,1.10419085]
[1738084429111,1.10808319,673.85,672.81,1.10419085]
[1738084429407,1.55052575,673.83,672.62,1.10419085]
[1738084432914,1.55052575,673.83,671.83,2.25438965]
[1738084432915,1.55052575,673.83,672.59,1.10419085]
[1738084435918,1.55052575,673.83,672.5,1.10419085]
[1738084438819,1.55052575,673.83,672.51,0.29739334]
[1738084441117,1.55052575,673.83,672.62,1.10419085]
[1738084443423,1.55052575,673.83,672.69,1.10419085]
[1738084443822,0.27288928,673.82,672.69,1.10419085]
[1738084444719,1.55052575,673.83,672.69,1.10419085]
[1738084445818,1.55052575,673.83,672.66,1.10419085]
[1738084446424,0.56972264,673.82,672.66,1.10419085]
[1738084446617,0.27290747,673.81,672.66,1.10419085]
[1738084448825,0.27290747,673.81,672.75,1.10419085]
[1738084449823,0.27291958,673.8,672.75,1.10419085]
[1738084450025,0.27291958,673.79,672.75,1.10419085]
[1738084450221,0.27291958,673.78,672.75,1.10419085]
[1738084450419,0.27291958,673.77,672.75,1.10419085]
[1738084450623,0.27291958,673.81,672.75,1.10419085]
[1738084450822,0.27292067,673.8,672.75,1.10419085]
[1738084451026,0.27292067,673.79,672.75,1.10419085]
[1738084452130,0.27292067,673.79,672.6,1.10419085]
[1738084456223,1.55062363,673.8,672.6,1.10419085]
[1738084456425,0.56976955,673.79,672.6,1.10419085]
[1738084456626,0.29683279,673.78,672.6,1.10419085]
[1738084456822,0.27294117,673.77,672.6,1.10419085]
[1738084457028,0.27294117,673.77,672.58,1.10419085]
[1738084459128,0.2968416,673.76,672.58,1.10419085]
[1738084459330,0.27294117,673.75,672.58,1.10419085]
[1738084459529,0.27294117,673.75,672.54,1.10419085]
[1738084459832,0.56978718,673.75,672.54,1.10419085]
[1738084460131,0.2729349,673.74,672.54,1.10419085]
[1738084461232,1.55087125,673.73,672.54,1.10419085]
[1738084461432,0.2729349,673.72,672.54,1.10419085]
[1738084462234,1.55087125,673.73,672.54,1.10419085]
[1738084462825,1.55087125,673.73,672.58,1.10419085]
[1738084465933,1.55087125,673.73,672.51,0.29739334]
[1738084475835,2.87087125,673.73,672.51,0.29739334]
[1738084476633,2.87087125,673.73,672.63,1.10419085]
[1738084479139,3.16772607,673.73,672.63,1.10419085]
[1738084479334,3.16772607,673.73,672.66,1.10419085]
[1738084480039,1.61685482,673.73,672.66,1.10419085]
[1738084483644,1.61685482,673.73,672.51,0.29739334]
[1738084483645,1.61685482,673.73,672.74,1.10419085]
[1738084486351,1.61685482,673.73,672.69,1.10419085]
[1738084491558,1.61685482,673.73,672.65,1.10419085]
[1738084494460,1.61685482,673.73,672.7,1.10419085]
[1738084497461,1.32,673.73,672.7,1.10419085]
[1738084497656,1.32,673.73,672.71,0.29730493]
[1738084513482,1.32,673.73,672.81,1.10419085]
[1738084516382,1.32,673.73,672.88,1.10419085]
[1738084522384,1.32,673.73,672.85,1.10419085]
[1738084525486,1.32,673.73,672.88,1.10419085]
[1738084530385,1.32,673.73,672.94,1.10419085]
[1738084532789,1.32,673.73,673.01,1.10419085]
[1738084535489,1.32,673.73,672.96,1.10419085]
[1738084538291,1.32,673.73,672.99,1.10419085]
[1738084543790,1.32,673.73,673.06,1.10419085]
[1738084546495,1.32,673.73,673.05,1.10419085]
[1738084552298,1.32,673.73,673.01,1.10419085]
[1738084555297,1.32,673.73,673.0,1.10419085]
[1738084557898,1.32,673.73,673.01,1.10419085]
[1738084560201,1.32,673.73,672.69,1.10419085]
[1738084566009,0.2729319,673.72,672.69,1.10419085]
[1738084566511,0.2729319,673.84,672.61,1.10419085]
[1738084566809,0.56974266,673.83,672.61,1.10419085]
[1738084567011,0.29681076,673.83,672.61,1.10419085]
[1738084567405,1.58681076,673.83,672.61,1.10419085]
[1738084569511,1.58681076,673.83,668.11,1.40466984]
[1738084569512,1.58681076,673.83,672.02,1.10419085]
[1738084569715,1.58681076,673.83,672.03,0.29760576]
[1738084569906,1.55098069,673.82,672.03,0.29760576]
[1738084570111,0.29682398,673.8,672.03,0.29760576]
[1738084570308,0.27301901,673.79,672.03,0.29760576]
[1738084570812,0.29683719,673.77,672.03,0.29760576]
[1738084571012,0.27301901,673.76,672.03,0.29760576]
[1738084572515,0.27301901,673.76,672.06,1.10419085]
[1738084573109,0.27301259,673.75,672.06,1.10419085]
[1738084573313,0.27301259,673.76,672.06,1.10419085]
[1738084573511,0.27301259,673.75,672.06,1.10419085]
[1738084573712,0.27301259,673.76,672.06,1.10419085]
[1738084573914,0.27301259,673.75,672.06,1.10419085]
[1738084574115,0.27301259,673.76,672.06,1.10419085]
[1738084574310,0.27301259,673.75,672.06,1.10419085]
[1738084574510,0.27301259,673.74,672.07,0.29758804]
[1738084574710,0.29685922,673.72,672.07,0.29758804]
[1738084574914,0.27301259,673.71,672.07,0.29758804]
[1738084576021,0.29686804,673.7,672.07,0.29758804]
[1738084576213,0.27301259,673.69,672.07,0.29758804]
[1738084576412,0.56990945,673.68,672.07,0.29758804]
[1738084576717,0.2730326,673.67,672.07,0.29758804]
[1738084577620,0.29687685,673.68,672.07,0.29758804]
[1738084579615,0.27303434,673.67,672.07,0.29758804]
[1738084579822,0.29687685,673.68,672.07,0.29758804]
[1738084580216,1.55158,673.66,672.07,0.29758804]
[1738084580521,0.29689007,673.65,672.07,0.29758804]
[1738084583428,0.27302032,673.64,672.07,0.29758804]
[1738084583622,0.29689889,673.63,672.07,0.29758804]
[1738084583826,0.27302032,673.62,672.07,0.29758804]
[1738084584026,0.2969077,673.61,672.07,0.29758804]
[1738084584224,0.27302032,673.6,672.07,0.29758804]
[1738084584421,0.29691652,673.59,672.07,0.29758804]
[1738084584626,0.27302032,673.58,672.07,0.29758804]
[1738084584827,0.29692533,673.57,672.07,0.29758804]
[1738084585028,0.27302032,673.56,672.07,0.29758804]
[1738084586526,0.29692533,673.57,672.07,0.29758804]
[1738084586729,1.08202205,673.56,672.07,0.29758804]
[1738084586928,0.27302205,673.55,672.07,0.29758804]
[1738084590533,1.55157424,673.54,672.07,0.29758804]
[1738084590726,0.27302205,673.53,672.07,0.29758804]
[1738084591127,1.55157424,673.54,672.07,0.29758804]
[1738084591331,0.809,673.56,672.07,0.29758804]
[1738084594441,0.809,673.56,672.21,1.10419085]
[1738084594630,0.809,673.56,672.22,0.29752164]
[1738084597332,0.809,673.56,672.28,1.10419085]
[1738084597641,0.809,673.56,672.29,0.29749066]
[1738084600340,0.809,673.56,672.38,1.10419085]
[1738084601140,0.809,673.56,672.38,1.40164169]
[1738084602842,0.809,673.56,672.52,1.10419085]
[1738084604145,1.55110743,673.55,672.52,1.10419085]
[1738084605644,1.55110743,673.55,672.44,1.10419085]
[1738084607647,0.27303014,673.54,672.44,1.10419085]
[1738084608047,0.29694297,673.53,672.44,1.10419085]
[1738084608246,0.27303014,673.52,672.44,1.10419085]
[1738084608446,0.29694297,673.53,672.44,1.10419085]
[1738084608643,0.27303609,673.52,672.44,1.10419085]
[1738084608949,0.29694297,673.53,672.38,0.29745084]
[1738084609148,0.27303356,673.52,672.38,0.29745084]
[1738084609348,0.29694297,673.53,672.38,0.29745084]
[1738084609548,0.27303935,673.52,672.38,0.29745084]
[1738084609742,0.29695178,673.51,672.38,0.29745084]
[1738084610046,0.27304091,673.5,672.38,0.29745084]
[1738084611550,0.2969606,673.49,672.38,0.29745084]
[1738084611744,0.27304091,673.48,672.38,0.29745084]
[1738084612050,0.29696942,673.47,672.38,0.29745084]
[1738084612544,0.27305072,673.46,672.38,0.29745084]
[1738084613051,0.884,673.46,672.38,0.29745084]
[1738084614351,1.5515973,673.45,672.38,0.29745084]
[1738084621651,0.2731893,673.44,672.38,0.29745084]
[1738084622256,0.2731893,673.43,672.38,0.29745084]
[1738084622456,0.2731893,673.42,672.38,0.29745084]
[1738084622656,0.2731893,673.41,672.38,0.29745084]
[1738084622856,0.2731893,673.4,672.38,0.29745084]
[1738084623155,0.2731893,673.39,672.38,0.29745084]
[1738084623359,1.5515973,673.45,672.38,0.29745084]
[1738084623559,0.27319951,673.44,672.38,0.29745084]
[1738084623752,0.27319951,673.43,672.38,0.29745084]
[1738084623951,0.27319951,673.42,672.38,0.29745084]
[1738084624152,0.27319951,673.41,672.38,0.29745084]
[1738084624358,0.27319951,673.4,672.38,0.29745084]
[1738084624559,0.27319951,673.39,672.38,0.29745084]
[1738084624760,0.27319951,673.38,671.6,1.10419085]
[1738084625057,0.27319951,673.37,671.6,1.10419085]
[1738084625258,0.27319951,673.36,671.6,1.10419085]
[1738084625458,0.27319951,673.35,671.6,1.10419085]
[1738084625658,0.27319951,673.34,671.6,1.10419085]
[1738084625854,0.27319951,673.33,671.6,1.10419085]
[1738084626060,0.27319951,673.32,671.6,1.10419085]
[1738084626258,0.27319951,673.31,671.6,1.10419085]
[1738084626462,0.27319951,673.3,671.6,1.10419085]
[1738084626654,0.27319951,673.29,671.6,1.10419085]
[1738084626855,0.27325659,673.28,671.6,1.10419085]
[1738084627060,0.27325659,673.27,671.59,1.10419085]
[1738084627263,0.27325659,673.26,671.59,1.10419085]
[1738084627463,0.27325659,673.36,671.6,0.2977963]
[1738084627760,0.27325659,673.35,671.6,0.2977963]
[1738084627960,0.27325659,673.34,671.6,0.2977963]
[1738084628160,0.27325659,673.33,671.6,0.2977963]
[1738084628363,1.55243367,673.37,671.6,0.2977963]
[1738084628557,0.27324096,673.36,671.6,0.2977963]
[1738084628757,0.57026331,673.35,671.6,0.2977963]
[1738084629062,0.27324096,673.34,671.6,0.2977963]
[1738084629254,0.29702235,673.35,671.6,0.2977963]
[1738084629255,0.27324096,673.33,671.6,0.2977963]
[1738084629461,0.27324096,673.32,671.6,0.2977963]
[1738084629666,0.27324096,673.31,671.6,0.2977963]
[1738084629858,0.27324096,673.3,671.6,0.2977963]
[1738084630057,0.29702235,673.35,671.6,0.2977963]
[1738084630262,0.27323961,673.34,671.6,0.2977963]
[1738084630463,0.29703558,673.32,671.6,0.2977963]
[1738084630661,0.27323961,673.31,671.6,0.2977963]
[1738084630862,0.29704881,673.29,671.6,0.2977963]
[1738084631064,0.27323961,673.28,671.6,0.2977963]
[1738084631257,0.29706205,673.26,671.6,0.2977963]
[1738084631460,0.27323961,673.25,671.6,0.2977963]
[1738084631659,0.29707529,673.23,671.6,0.2977963]
[1738084632059,0.27324277,673.22,671.6,0.2977963]
[1738084632259,0.29708853,673.2,671.6,0.2977963]
[1738084632460,0.27324277,673.19,671.6,0.2977963]
[1738084633066,0.27324277,673.18,671.6,0.2977963]
[1738084633259,0.27324277,673.19,671.6,0.2977963]
[1738084633463,0.27324277,673.18,671.6,0.2977963]
[1738084633758,0.29710618,673.16,671.6,0.2977963]
[1738084633966,0.27324277,673.15,671.6,0.2977963]
[1738084634266,0.29711501,673.14,671.6,0.2977963]
[1738084634467,0.27324277,673.13,671.6,0.2977963]
[1738084634858,0.29712384,673.12,671.6,0.2977963]
[1738084635063,0.27324277,673.11,671.6,0.2977963]
[1738084635459,1.82596505,673.1,671.6,0.2977963]
[1738084635658,0.27324277,673.09,671.6,0.2977963]
[1738084637162,1.76424277,673.09,671.6,0.2977963]
[1738084637461,0.27324277,673.08,671.6,0.2977963]
[1738084637862,1.491,673.09,671.6,0.2977963]
[1738084643465,1.491,673.09,671.66,1.10419085]
[1738084643664,1.491,673.09,671.68,0.29776083]
[1738084646767,1.491,673.09,671.84,1.10419085]
[1738084647074,1.491,673.09,671.85,0.29768549]
[1738084649472,1.491,673.09,671.89,1.10419085]
[1738084649672,1.491,673.09,671.9,0.29766334]
[1738084653378,1.491,673.09,671.93,1.10419085]
[1738084654878,1.491,673.09,671.94,0.29764562]
[1738084655271,1.491,673.09,672.0,1.10419085]
[1738084655476,1.491,673.09,672.01,0.29761461]
[1738084667395,1.491,673.09,672.04,1.10419085]
[1738084667693,1.491,673.09,672.06,0.29759247]
[1738084670293,1.491,673.09,672.12,1.10419085]
[1738084670494,1.491,673.09,672.13,0.29756148]
[1738084673795,1.491,673.09,672.33,1.10419085]
[1738084676100,1.491,673.09,672.34,1.10419085]
[1738084679094,1.491,673.09,672.24,1.10419085]
[1738084683607,1.491,673.09,672.13,0.29756148]
[1738084683608,1.491,673.09,672.13,1.40175233]
[1738084687007,1.491,673.09,672.13,0.29756148]
[1738084699421,1.491,673.09,672.03,1.10419085]
[1738084699920,1.491,673.09,671.97,1.10419085]
[1738084701319,0.27320372,673.08,671.97,1.10419085]
[1738084701519,0.29714591,673.07,671.97,1.10419085]
[1738084701715,0.27320372,673.06,671.97,1.10419085]
[1738084702619,1.67820372,673.06,671.97,1.10419085]
[1738084702822,0.27320372,673.05,671.97,1.10419085]
[1738084703123,0.27320372,673.05,671.63,1.10419085]
[1738084703623,0.27320372,673.05,671.64,0.29777857]
[1738084703821,1.405,673.06,671.64,0.29777857]
[1738084704022,0.27319567,673.05,671.64,0.29777857]
[1738084704616,1.405,673.06,671.64,0.29777857]
[1738084705924,1.405,673.06,671.72,1.10419085]
[1738084706223,1.405,673.06,671.73,0.29773867]
[1738084708323,1.405,673.06,671.81,1.10419085]
[1738084708524,1.405,673.06,671.82,0.29769878]
[1738084710125,1.405,673.06,671.84,1.10419085]
[1738084710325,1.405,673.06,671.85,0.29768549]
[1738084715931,1.405,673.06,671.86,1.10419085]
[1738084716125,1.405,673.06,671.87,0.29767663]
[1738084728747,1.405,673.06,672.03,1.10419085]
[1738084732051,1.405,673.06,671.98,1.10419085]
[1738084733050,1.405,673.06,671.98,1.40181875]
[1738084735552,1.405,673.06,672.01,1.10419085]
[1738084738456,1.405,673.06,672.07,1.10419085]
[1738084741958,1.405,673.06,672.12,1.10419085]
[1738084745253,1.405,673.06,672.34,1.10419085]
[1738084748460,1.405,673.06,672.27,1.10419085]
[1738084750161,1.405,673.06,672.28,0.29749509]
[1738084751765,1.405,673.06,672.43,1.10419085]
[1738084754363,1.405,673.06,672.36,1.10419085]
[1738084755465,1.405,673.06,672.36,1.40165054]
[1738084757367,1.405,673.06,672.36,0.29745969]
[1738084771679,1.405,673.06,672.41,1.10419085]
[1738084771879,1.405,673.06,672.42,0.29743315]
[1738084774586,1.405,673.06,672.49,1.10419085]
[1738084777783,1.405,673.06,672.68,1.10419085]
[1738084780195,1.405,673.06,672.69,1.10419085]
[1738084783199,1.405,673.06,672.68,1.10419085]
[1738084789095,1.405,673.06,672.42,0.29743315]
[1738084789096,1.405,673.06,672.75,1.10419085]
[1738084790798,1.55104406,673.74,672.75,1.10419085]
[1738084791803,1.55104406,673.74,672.64,1.10419085]
[1738084791998,1.107,673.74,672.64,1.10419085]
[1738084794400,1.107,673.74,672.75,1.10419085]
[1738084797907,1.107,673.74,672.42,0.29743315]
[1738084804514,1.107,673.74,672.54,1.10419085]
[1738084808120,1.107,673.74,672.42,0.29743315]
[1738084808121,1.107,673.74,672.55,1.10419085]
[1738084811521,1.107,673.74,672.52,1.10419085]
[1738084812424,0.56979833,673.73,672.52,1.10419085]
[1738084812618,0.29685482,673.73,672.52,1.10419085]
[1738084812818,0.27293991,673.72,672.52,1.10419085]
[1738084814018,0.29686363,673.71,672.52,1.10419085]
[1738084814218,0.27293991,673.7,672.52,1.10419085]
[1738084814417,0.29687244,673.69,672.52,1.10419085]
[1738084814624,0.27293991,673.68,672.52,1.10419085]
[1738084814924,0.29688126,673.67,672.53,1.10419085]
[1738084815122,0.27293991,673.66,672.53,1.10419085]
[1738084815524,0.29689007,673.65,672.53,1.10419085]
[1738084815826,0.27293991,673.64,672.53,1.10419085]
[1738084816026,0.29689007,673.65,672.53,1.10419085]
[1738084816220,0.27298252,673.64,672.53,1.10419085]
[1738084816423,0.29689889,673.63,672.53,1.10419085]
[1738084816619,0.27298252,673.62,672.53,1.10419085]
[1738084816822,0.2969077,673.61,672.53,1.10419085]
[1738084817024,0.27298252,673.6,672.53,1.10419085]
[1738084817224,0.56989463,673.6,672.53,1.10419085]
[1738084817424,0.27298252,673.59,672.53,1.10419085]
[1738084817626,0.27298252,673.59,672.42,0.29743315]
[1738084817929,0.27298225,673.58,672.42,0.29743315]
[1738084818125,0.27298225,673.57,672.42,0.29743315]
[1738084818325,0.27298225,673.56,672.42,0.29743315]
[1738084818524,0.27298225,673.55,672.42,0.29743315]
[1738084818725,0.27298225,673.54,672.42,0.29743315]
[1738084818925,0.29691211,673.6,672.42,0.29743315]
[1738084819221,0.27298651,673.59,672.42,0.29743315]
[1738084821830,1.53591211,673.6,672.42,0.29743315]
[1738084829837,1.53591211,673.6,672.54,1.10419085]
[1738084833641,1.53591211,673.6,672.5,1.10419085]
[1738084836950,1.53591211,673.6,672.58,1.10419085]
[1738084839848,1.53591211,673.6,672.57,1.10419085]
[1738084842654,1.53591211,673.6,672.42,0.29743315]
[1738084842655,1.53591211,673.6,672.56,1.10419085]
[1738084845053,1.53591211,673.6,672.46,1.10419085]
[1738084845251,1.53591211,673.6,672.46,1.4016063]
[1738084848056,1.53591211,673.6,672.46,0.29741545]
[1738084857361,1.53591211,673.6,672.5,1.10419085]
[1738084860963,1.53591211,673.6,672.71,1.10419085]
[1738084863263,1.53591211,673.6,672.8,1.10419085]
[1738084869666,1.53591211,673.6,672.83,1.10419085]
[1738084871973,1.53591211,673.6,672.76,1.10419085]
[1738084875274,1.53591211,673.6,672.61,1.10419085]
[1738084880880,1.53591211,673.6,672.68,1.10419085]
[1738084883484,1.53591211,673.6,672.62,1.10419085]
[1738084884086,0.2729689,673.59,672.62,1.10419085]
[1738084885585,1.7289689,673.59,672.62,1.10419085]
[1738084885786,0.2729689,673.58,672.57,1.10419085]
[1738084885986,1.456,673.59,672.57,1.10419085]
[1738084886781,0.27296763,673.58,672.57,1.10419085]
[1738084887089,1.456,673.59,672.57,1.10419085]
[1738084892092,1.456,673.59,672.63,1.10419085]
[1738084894792,1.456,673.59,672.61,1.10419085]
[1738084897592,1.456,673.59,672.55,1.10419085]
[1738084900393,1.456,673.59,672.57,1.10419085]
[1738084903693,1.456,673.59,672.61,1.10419085]
[1738084907498,0.27294786,673.58,672.58,1.10419085]
[1738084907902,1.456,673.59,672.58,1.10419085]
[1738084910909,1.456,673.59,672.46,0.29741545]
[1738084912909,1.456,673.59,672.51,1.10419085]
[1738084916012,1.456,673.59,672.5,1.10419085]
[1738084919511,1.456,673.59,672.64,1.10419085]
[1738084922409,1.55100949,673.58,672.64,1.10419085]
[1738084923718,2.49200949,673.58,672.64,1.10419085]
[1738084925223,2.49200949,673.58,672.46,0.29741545]
[1738084929024,0.27303055,673.57,672.46,0.29741545]
[1738084931330,0.29692974,673.56,672.28,1.10419085]
[1738084931527,0.27303055,673.55,672.28,1.10419085]
[1738084931827,0.29692974,673.56,672.28,1.10419085]
[1738084931828,0.27302302,673.54,672.28,1.10419085]
[1738084932027,0.27302302,673.53,672.28,1.10419085]
[1738084932224,0.29694738,673.52,672.28,1.10419085]
[1738084932731,1.82446456,673.51,672.28,1.10419085]
[1738084932927,0.56997333,673.5,672.28,1.10419085]
[1738084933229,0.56998172,673.49,672.28,1.10419085]
[1738084933530,0.2969606,673.49,672.28,1.10419085]
[1738084935324,0.2969606,673.49,672.3,1.10419085]
[1738084938134,0.2969606,673.49,672.2,1.10419085]
[1738084938328,0.2969606,673.49,672.21,0.29752607]
[1738084940933,0.2969606,673.49,672.24,1.10419085]
[1738084941132,0.2969606,673.49,672.25,0.29750836]
[1738084942934,1.1979606,673.49,672.25,0.29750836]
[1738084944234,1.1979606,673.49,672.44,1.10419085]
[1738084947339,1.1979606,673.49,672.5,1.10419085]
[1738084950144,1.1979606,673.49,672.25,0.29750836]
[1738084950145,1.1979606,673.49,672.47,1.10419085]
[1738084956050,1.1979606,673.49,672.43,1.10419085]
[1738084958643,1.1979606,673.49,672.54,1.10419085]
[1738084961944,1.1979606,673.49,672.58,1.10419085]
[1738084965049,1.1979606,673.49,672.51,1.10419085]
[1738084969157,1.1979606,673.49,672.54,1.10419085]
[1738084972356,1.1979606,673.49,672.62,1.10419085]
[1738084974960,1.1979606,673.49,672.66,1.10419085]
[1738084978064,1.1979606,673.49,672.72,1.10419085]
[1738084980772,0.27301858,673.48,672.72,1.10419085]
[1738084981371,0.2969606,673.49,672.72,1.10419085]
[1738084981574,0.27302384,673.48,672.69,1.10419085]
[1738084982171,1.72402384,673.48,672.69,1.10419085]
[1738084982373,0.27302384,673.47,672.69,1.10419085]
[1738084983672,1.451,673.48,672.69,1.10419085]
[1738084983866,0.27303942,673.47,672.69,1.10419085]
[1738084984273,0.29697383,673.46,672.69,1.10419085]
[1738084984567,0.27303942,673.45,672.69,1.10419085]
[1738084984771,0.29698265,673.44,672.46,1.10419085]
[1738084987966,0.29698265,673.44,672.25,0.29750836]
[1738084988673,0.27306535,673.43,672.25,0.29750836]
[1738084988869,0.29699147,673.42,672.25,0.29750836]
[1738084993674,0.27305402,673.41,672.25,0.29750836]
[1738084993875,0.29700029,673.4,672.25,0.29750836]
[1738084994071,0.27305402,673.39,672.25,0.29750836]
[1738084994373,0.57005872,673.39,672.25,0.29750836]
[1738084994575,0.27305402,673.38,672.25,0.29750836]
[1738084995172,1.82474034,673.37,672.25,0.29750836]
[1738084995378,0.2730508,673.36,672.25,0.29750836]
[1738084996776,0.27304531,673.35,672.25,0.29750836]
[1738084997081,0.27304531,673.34,672.25,0.29750836]
[1738084997274,0.27304531,673.36,672.25,0.29750836]
[1738084997475,0.27304531,673.35,672.25,0.29750836]
[1738084997680,0.27304531,673.36,672.25,0.29750836]
[1738084997882,0.27304531,673.35,672.25,0.29750836]
[1738084998182,0.27304531,673.34,672.25,0.29750836]
[1738084998377,1.55168954,673.37,672.28,1.10419085]
[1738084998582,0.27305581,673.36,672.28,1.10419085]
[1738085001884,0.27305395,673.35,672.28,1.10419085]
[1738085002182,0.27305395,673.34,672.28,1.10419085]
[1738085002384,0.27305395,673.36,672.28,1.10419085]
[1738085002585,0.27305395,673.35,672.28,1.10419085]
[1738085002983,1.55168954,673.37,672.28,1.10419085]
[1738085003181,0.27305239,673.36,672.28,1.10419085]
[1738085004981,0.27305239,673.36,672.29,1.10419085]
[1738085006187,1.55168954,673.37,672.29,1.10419085]
[1738085006388,0.81,673.36,672.29,1.10419085]
[1738085008290,0.81,673.36,672.25,0.29750836]
[1738085014294,0.81,673.36,672.32,1.10419085]
[1738085016489,0.81,673.36,672.38,1.10419085]
[1738085016691,0.27304808,673.35,672.38,1.10419085]
[1738085017694,0.81,673.36,672.38,1.10419085]
[1738085017898,0.27304602,673.34,672.38,1.10419085]
[1738085018094,0.81,673.36,672.38,1.10419085]
[1738085018299,0.27304574,673.35,672.38,1.10419085]
[1738085019296,0.81,673.36,672.38,1.10419085]